[Event "LEM Sachsen-Anhalt Open 2024"]
[Site "Merseburg"]
[Date "2024.02.08"]
[Round "2.9"]
[White "Golitsyn, Yuri"]
[Black "Schaefer, Toni"]
[Result "1-0"]
[ECO "A45"]
[WhiteElo "1781"]
[BlackElo "1381"]
[Annotator "NA RC"]
[PlyCount "147"]
[EventDate "2024.02.01"]
[EventType "swiss"]
[EventCountry "GER"]
[SourceTitle "playchess.com"]
[Source "ChessBase"]
[SourceQuality "1"]
[TimeControl "40/5400+30:1800+30"]

1. d4 {[%emt 0:00:01]} Nf6 {[%emt 0:00:12]} 2. Bf4 {[%emt 0:00:06]} g6 {[%emt 0:00:12]} 3. Nc3 {[%emt 0:00:09]} d5 {[%emt 0:00:04]} 4. e3 {[%emt 0:00:08]} Bg7 {[%emt 0:00:12]} 5. Nb5 {[%emt 0:00:18]} Na6 {[%emt 0:00:06]} 6. Nf3 {[%emt 0:00:25]} c6 {[%emt 0:00:14]} 7. Nc3 {[%emt 0:00:05]} Nc7 {[%emt 0:00:04]} 8. Be2 {[%emt 0:00:37]} O-O {[%emt 0:00:42]} 9. O-O {[%emt 0:00:42]} Nce8 {[%emt 0:00:59]} 10. h3 {[%emt 0:02:27]} Nd6 {[%emt 0:00:20]} 11. Be5 {[%emt 0:01:07]} a5 {[%emt 0:03:29]} 12. Na4 {[%emt 0:03:04]} b5 {[%emt 0:03:02]} 13. Nc5 {[%emt 0:01:37]} Nfe4 {[%emt 0:00:13]} 14. Bxg7 {[%emt 0:02:24]} Kxg7 {[%emt 0:00:25]} 15. Ne5 {[%emt 0:03:22]} Qc7 {[%emt 0:01:35]} 16. Ned3 {[%emt 0:03:45]} Nxc5 {[%emt 0:05:42]} 17. Nxc5 {[%emt 0:00:18]} Ne4 {[%emt 0:00:47]} 18. Nxe4 {[%emt 0:02:39]} dxe4 {[%emt 0:00:03]} 19. c3 {[%emt 0:06:40]} Rd8 {[%emt 0:05:21]} 20. Qc2 {[%emt 0:02:19]} f5 {[%emt 0:00:12]} 21. Rfd1 {[%emt 0:03:40]} Ba6 {[%emt 0:02:33]} 22. Rd2 {[%emt 0:05:20]} c5 {[%emt 0:07:16]} 23. Rad1 {[%emt 0:04:05]} cxd4 {[%emt 0:00:28]} 24. Rxd4 {[%emt 0:00:57]} Rxd4 {[%emt 0:00:51]} 25. Rxd4 {[%emt 0:00:18]} b4 {[%emt 0:10:52]} 26. Bxa6 {[%emt 0:05:58]} Rxa6 {[%emt 0:00:05]} 27. c4 {[%emt 0:01:25]} Rd6 {[%emt 0:00:11]} 28. b3 {[%emt 0:14:16]} Qc5 {[%emt 0:00:08]} 29. Qd2 {[%emt 0:02:58]} Kf7 {[%emt 0:00:10]} 30. Rxd6 {[%emt 0:02:58]} exd6 {[%emt 0:00:49]} 31. Qd4 {[%emt 0:01:24]} Kg8 {[%emt 0:00:25]} 32. Qf6 {[%emt 0:02:37]} Qc7 {[%emt 0:00:20]} 33. h4 {[%emt 0:01:29]} Qc5 {[%emt 0:05:02]} 34. h5 {[%emt 0:02:49]} gxh5 {[%emt 0:00:39]} 35. Qg5+ {[%emt 0:01:08]} Kh8 {[%emt 0:00:12]} 36. Qxh5 {[%emt 0:01:47]} Qe5 {[%emt 0:00:19]} 37. Qd1 {[%emt 0:02:33]} Kg7 {[%emt 0:00:11]} 38. Qd4 {[%emt 0:02:31]} Kf6 {[%emt 0:00:42]} 39. g3 {[%emt 0:01:00]} Ke6 {[%emt 0:54:53]} 40. Kg2 {[%emt 0:00:40]} h5 {[%emt 0:00:00]} 41. Kh3 {[%emt 0:35:03]} Qf6 {[%emt 0:00:00]} 42. Qd5+ {[%emt 0:01:42]} Ke7 {[%emt 0:00:00]} 43. Qxa5 {[%emt 0:03:57]} h4 {[%emt 0:00:00]} 44. Qa7+ {[%emt 0:01:46]} Ke6 {[%emt 0:00:00]} 45. Qh7 {[%emt 0:06:00]} hxg3 {[%emt 0:00:00]} 46. Kxg3 {[%emt 0:00:21]} Qg5+ {[%emt 0:00:00]} 47. Kh2 {[%emt 0:00:38]} Qg4 {[%emt 0:00:00]} 48. Qh3 {[%emt 0:01:41]} Qe2 {[%emt 0:00:00]} 49. Qh6+ {[%emt 0:00:00]} Ke5 {[%emt 0:00:00]} 50. Qh8+ {[%emt 0:00:00]} Ke6 {[%emt 0:00:00]} 51. Qg8+ {[%emt 0:00:00]} Ke5 {[%emt 0:00:00]} 52. Qd5+ {[%emt 0:00:00]} Kf6 {[%emt 0:00:00]} 53. Qxd6+ {[%emt 0:00:00]} Kf7 {[%emt 0:00:00]} 54. Kg1 {[%emt 0:00:00]} Qxa2 {[%emt 0:00:00]} 55. Qxb4 {[%emt 0:00:00]} Qa1+ {[%emt 0:00:00]} 56. Kg2 {[%emt 0:00:00]} Qd1 {[%emt 0:00:00]} 57. Qb7+ {[%emt 0:00:00]} Kg6 {[%emt 0:00:00]} 58. Qd5 {[%emt 0:00:00]} Qxb3 {[%emt 0:00:00]} 59. Qd6+ {[%emt 0:00:00]} Kh5 {[%emt 0:00:00]} 60. c5 {[%emt 0:00:00]} Qg8+ {[%emt 0:00:00]} 61. Qg3 {[%emt 0:00:00]} Qd5 {[%emt 0:00:00]} 62. Qd6 {[%emt 0:00:00]} Qg8+ {[%emt 0:00:00]} 63. Kf1 {[%emt 0:00:00]} Qc4+ {[%emt 0:00:00]} 64. Kg1 {[%emt 0:00:00]} Qg8+ {[%emt 0:00:00]} 65. Kh2 {[%emt 0:00:00]} Qa2 {[%emt 0:00:00]} 66. Qf4 {[%emt 0:00:00]} Qd5 {[%emt 0:00:00]} 67. c6 {[%emt 0:00:00]} Qxc6 {[%emt 0:00:00]} 68. Qxf5+ {[%emt 0:00:00]} Kh6 {[%emt 0:00:00]} 69. Kg3 {[%emt 0:00:00]} Qc2 {[%emt 0:00:00]} 70. Kh4 {[%emt 0:00:00]} Qb1 {[%emt 0:00:00]} 71. Qe6+ {[%emt 0:00:35]} Kh7 {[%emt 0:00:00]} 72. Kg5 {[%emt 0:00:53]} Qg1+ {[%emt 0:00:00]} 73. Qg4 {[%emt 0:00:56]} Qxf2 {[%emt 0:00:00]} 74. Qf5+ {[%emt 0:00:55]} 1-0

[Event "LEM Sachsen-Anhalt Open 2024"]
[Site "Merseburg"]
[Date "2024.02.08"]
[Round "2.10"]
[White "Binnewies, Markus"]
[Black "Noennig, Lotte"]
[Result "1-0"]
[ECO "D37"]
[WhiteElo "1772"]
[BlackElo "1345"]
[Annotator "NA RC"]
[PlyCount "69"]
[EventDate "2024.02.01"]
[EventType "swiss"]
[EventCountry "GER"]
[SourceTitle "playchess.com"]
[Source "ChessBase"]
[SourceQuality "1"]
[TimeControl "40/5400+30:1800+30"]

1. d4 {[%emt 0:00:34]} d5 {[%emt 0:00:12]} 2. c4 {[%emt 0:01:06]} e6 {[%emt 0:00:26]} 3. Nf3 {[%emt 0:00:52]} Nf6 {[%emt 0:01:12]} 4. Qc2 {[%emt 0:04:55]} Be7 {[%emt 0:01:10]} 5. Nc3 {[%emt 0:04:16]} O-O {[%emt 0:01:18]} 6. cxd5 {[%emt 0:06:58]} exd5 {[%emt 0:00:45]} 7. Bf4 {[%emt 0:00:57]} Nbd7 {[%emt 0:03:17]} 8. h3 {[%emt 0:03:46]} c5 {[%emt 0:02:21]} 9. e3 {[%emt 0:02:22]} Re8 {[%emt 0:02:58]} 10. Be2 {[%emt 0:01:31]} a6 {[%emt 0:03:37]} 11. a4 {[%emt 0:00:57]} cxd4 {[%emt 0:11:32]} 12. Nxd4 {[%emt 0:01:32]} Bc5 {[%emt 0:04:12]} 13. O-O {[%emt 0:00:24]} Qe7 {[%emt 0:05:31]} 14. Bf3 {[%emt 0:00:43]} Nb6 {[%emt 0:05:00]} 15. a5 {[%emt 0:00:40]} Nbd7 {[%emt 0:05:42]} 16. Bxd5 {[%emt 0:03:15]} Ne5 {[%emt 0:08:24]} 17. Qb3 {[%emt 0:05:56]} Ng6 {[%emt 0:06:34]} 18. Bg5 {[%emt 0:02:41]} h6 {[%emt 0:03:33]} 19. Bxf6 {[%emt 0:00:25]} Qxf6 {[%emt 0:00:30]} 20. Ne4 {[%emt 0:00:19]} Qe7 {[%emt 0:02:39]} 21. Nxc5 {[%emt 0:00:09]} Qxc5 {[%emt 0:04:07]} 22. Bxf7+ {[%emt 0:00:26]} Kh8 {[%emt 0:00:57]} 23. Qc2 {[%emt 0:57:16]} Qe5 {[%emt 0:06:24]} 24. Qxg6 {[%emt 0:00:00]} Rf8 {[%emt 0:02:10]} 25. Be6 {[%emt 0:00:00]} Bxe6 {[%emt 0:02:50]} 26. Qxe6 {[%emt 0:00:00]} Qg5 {[%emt 0:01:27]} 27. Qg4 {[%emt 0:00:00]} Qf6 {[%emt 0:00:32]} 28. Rac1 {[%emt 0:00:00]} Rae8 {[%emt 0:01:00]} 29. Rc5 {[%emt 0:00:00]} Qe7 {[%emt 0:02:10]} 30. Rf5 {[%emt 0:00:00]} Rg8 {[%emt 0:01:09]} 31. Qg6 {[%emt 0:00:00]} Qb4 {[%emt 0:01:49]} 32. b3 {[%emt 0:00:00]} Qc3 {[%emt 0:01:58]} 33. Rh5 {[%emt 0:00:00]} Re7 {[%emt 0:02:22]} 34. Nf5 {[%emt 0:00:00]} Rc7 {[%emt 0:01:12]} 35. Nxh6 {[%emt 0:00:00]} 1-0

[Event "LEM Sachsen-Anhalt Open 2024"]
[Site "Merseburg"]
[Date "2024.02.09"]
[Round "3.1"]
[White "Golitsyn, Yuri"]
[Black "Carnot, Luca"]
[Result "1/2-1/2"]
[ECO "A47"]
[WhiteElo "1781"]
[BlackElo "2063"]
[Annotator "NA RC"]
[PlyCount "103"]
[EventDate "2024.02.01"]
[EventType "swiss"]
[EventCountry "GER"]
[SourceTitle "playchess.com"]
[Source "ChessBase"]
[SourceQuality "1"]
[TimeControl "40/5400+30:1800+30"]

1. d4 {[%emt 0:00:01]} Nf6 {[%emt 0:00:11]} 2. Bf4 {[%emt 0:00:11]} e6 {[%emt 0:01:03]} 3. e3 {[%emt 0:00:10]} b6 {[%emt 0:00:11]} 4. Nd2 {[%emt 0:01:13]} Bb7 {[%emt 0:00:15]} 5. Ngf3 {[%emt 0:00:13]} Be7 {[%emt 0:00:29]} 6. h3 {[%emt 0:00:44]} Ne4 {[%emt 0:01:51]} 7. Nxe4 {[%emt 0:01:29]} Bxe4 {[%emt 0:00:25]} 8. Be2 {[%emt 0:00:58]} f5 {[%emt 0:00:41]} 9. Nd2 {[%emt 0:04:13]} Bc6 {[%emt 0:04:46]} 10. Bf3 {[%emt 0:00:33]} O-O {[%emt 0:00:45]} 11. O-O {[%emt 0:00:38]} d6 {[%emt 0:17:05]} 12. c4 {[%emt 0:01:55]} Bxf3 {[%emt 0:05:35]} 13. Nxf3 {[%emt 0:04:40]} g5 {[%emt 0:11:24]} 14. Bh2 {[%emt 0:04:42]} Qe8 {[%emt 0:00:12]} 15. c5 {[%emt 0:02:45]} Qb5 {[%emt 0:09:30]} 16. cxd6 {[%emt 0:05:50]} cxd6 {[%emt 0:01:02]} 17. Qb3 {[%emt 0:02:50]} Qxb3 {[%emt 0:10:37]} 18. axb3 {[%emt 0:00:02]} Rc8 $11 {[%emt 0:00:08]} 19. Rfc1 {[%emt 0:02:13]} Nd7 {[%emt 0:16:18]} 20. Rc3 {[%emt 0:01:24]} b5 {[%emt 0:01:28]} 21. Rac1 {[%emt 0:03:55]} Nb6 {[%emt 0:04:44]} 22. Kf1 {[%emt 0:04:17]} Rxc3 {[%emt 0:02:50]} 23. Rxc3 {[%emt 0:00:55]} Rc8 {[%emt 0:01:20]} 24. Ke2 {[%emt 0:02:54]} Kf7 {[%emt 0:02:03]} 25. g4 {[%emt 0:04:52]} Ke8 {[%emt 0:04:08]} 26. Ne1 {[%emt 0:03:33]} Kd7 {[%emt 0:00:53]} 27. Rxc8 {[%emt 0:00:42]} Kxc8 {[%emt 0:01:17]} 28. Nd3 {[%emt 0:00:53]} Kd7 {[%emt 0:00:29]} 29. f3 {[%emt 0:00:33]} a5 {[%emt 0:00:54]} 30. Bg3 {[%emt 0:01:16]} Kc6 {[%emt 0:00:41]} 31. Be1 {[%emt 0:00:54]} b4 {[%emt 0:00:06]} 32. Bg3 {[%emt 0:01:28]} Kb5 {[%emt 0:00:42]} 33. Be1 {[%emt 0:03:52]} Bf8 {[%emt 0:00:29]} 34. Kd2 {[%emt 0:06:39]} a4 {[%emt 0:00:39]} 35. bxa4+ {[%emt 0:03:21]} Kxa4 {[%emt 0:00:06]} 36. Kc2 {[%emt 0:01:25]} b3+ {[%emt 0:01:09]} 37. Kd1 {[%emt 0:02:05]} Kb5 {[%emt 0:00:33]} 38. Ke2 {[%emt 0:01:38]} Kc4 {[%emt 0:00:15]} 39. Nb4 {[%emt 0:06:15]} Na4 {[%emt 0:01:09]} 40. Nc6 {[%emt 0:02:54]} Nxb2 {[%emt 0:01:14]} 41. Na5+ {[%emt 0:31:10]} Kd5 {[%emt 0:08:43]} 42. Nxb3 {[%emt 0:00:00]} f4 {[%emt 0:00:48]} 43. e4+ {[%emt 0:00:00]} Kc4 {[%emt 0:02:02]} 44. Na5+ {[%emt 0:00:00]} Kxd4 {[%emt 0:04:37]} 45. Bf2+ {[%emt 0:00:00]} Kc3 {[%emt 0:00:31]} 46. Nc6 {[%emt 0:00:00]} e5 {[%emt 0:04:07]} 47. h4 {[%emt 0:00:00]} Kc4 {[%emt 0:09:51]} 48. hxg5 {[%emt 0:00:00]} Kb5 {[%emt 0:00:44]} 49. Na7+ {[%emt 0:00:00]} Ka6 {[%emt 0:00:17]} 50. Nc6 {[%emt 0:00:00]} Kb5 {[%emt 0:01:48]} 51. Na7+ {[%emt 0:00:00]} Ka6 {[%emt 0:00:07]} 52. Nc6 {[%emt 0:00:00]} 1/2-1/2

[Event "LEM Sachsen-Anhalt Open 2024"]
[Site "Merseburg"]
[Date "2024.02.09"]
[Round "3.2"]
[White "Binnewies, Markus"]
[Black "Dobierzin, Olaf"]
[Result "1-0"]
[ECO "E61"]
[WhiteElo "1772"]
[BlackElo "1927"]
[Annotator "NA RC"]
[PlyCount "83"]
[EventDate "2024.02.01"]
[EventType "swiss"]
[EventCountry "GER"]
[SourceTitle "playchess.com"]
[Source "ChessBase"]
[SourceQuality "1"]
[TimeControl "40/5400+30:1800+30"]

1. d4 {[%emt 0:00:16]} Nf6 {[%emt 0:00:13]} 2. Nf3 {[%emt 0:02:55]} g6 {[%emt 0:00:21]} 3. e3 {[%emt 0:01:41]} Bg7 {[%emt 0:00:47]} 4. b3 {[%emt 0:01:30]} c5 {[%emt 0:02:23]} 5. Be2 {[%emt 0:03:35]} O-O {[%emt 0:01:33]} 6. O-O {[%emt 0:00:37]} b6 {[%emt 0:03:24]} 7. Bb2 {[%emt 0:02:02]} Bb7 {[%emt 0:03:04]} 8. Nbd2 {[%emt 0:00:37]} d6 {[%emt 0:03:23]} 9. c4 {[%emt 0:03:13]} Ne4 {[%emt 0:04:49]} 10. Nxe4 {[%emt 0:00:59]} Bxe4 {[%emt 0:00:04]} 11. Nd2 {[%emt 0:00:10] E61: King's Indian: Early deviations for White, including Smyslov System.} Bb7 {[%emt 0:00:26]} 12. Bf3 {[%emt 0:00:10]} Qc8 {[%emt 0:02:38]} 13. Bxb7 {[%emt 0:00:43]} Qxb7 {[%emt 0:00:02]} 14. Qf3 {[%emt 0:00:12]} Qxf3 {[%emt 0:00:30]} 15. Nxf3 {[%emt 0:00:05]} Nc6 {[%emt 0:01:57]} 16. Rad1 {[%emt 0:00:28]} Rfd8 {[%emt 0:04:17]} 17. Rd2 {[%emt 0:00:11]} a5 {[%emt 0:08:28]} 18. a4 {[%emt 0:00:21]} cxd4 {[%emt 0:12:52]} 19. Bxd4 {[%emt 0:10:36]} Nxd4 {[%emt 0:05:57]} 20. Nxd4 {[%emt 0:00:32]} Bxd4 {[%emt 0:01:00]} 21. Rxd4 {[%emt 0:00:37]} Rdc8 {[%emt 0:05:34]} 22. g4 {[%emt 0:02:33]} Rc5 $11 {[%emt 0:37:48]} 23. f4 {[%emt 0:01:09]} f5 {[%emt 0:00:00]} 24. h3 {[%emt 0:00:53]} Kf7 {[%emt 0:00:00]} 25. Kf2 {[%emt 0:05:49]} Rd8 {[%emt 0:00:00]} 26. Rfd1 {[%emt 0:00:31]} Re8 {[%emt 0:00:00]} 27. Kf3 {[%emt 0:04:23]} Rec8 {[%emt 0:00:00]} 28. R1d2 {[%emt 0:03:30]} R8c7 {[%emt 0:00:00]} 29. g5 {[%emt 0:01:42]} Rc8 {[%emt 0:00:00]} 30. e4 {[%emt 0:00:54]} fxe4+ {[%emt 0:00:00]} 31. Kxe4 {[%emt 0:00:45]} Rf5 {[%emt 0:00:00]} 32. Rd5 {[%emt 0:00:15]} Rc5 {[%emt 0:00:00]} 33. R2d3 {[%emt 0:04:13]} Ke6 {[%emt 0:00:00]} 34. h4 {[%emt 0:04:51]} Rfxd5 {[%emt 0:00:00]} 35. Rxd5 {[%emt 0:00:25]} Rxd5 {[%emt 0:02:51]} 36. cxd5+ {[%emt 0:00:10]} Kf7 {[%emt 0:01:12]} 37. f5 {[%emt 0:01:51]} Kg7 {[%emt 0:00:20]} 38. Kf4 {[%emt 0:00:08]} Kf7 {[%emt 0:00:12]} 39. Kg4 {[%emt 0:00:07]} Kg7 {[%emt 0:00:16]} 40. h5 {[%emt 0:00:12]} Kf7 {[%emt 0:02:38]} 41. fxg6+ {[%emt 0:30:44]} hxg6 {[%emt 0:30:14]} 42. h6 {[%emt 0:00:12]} 1-0

[Event "LEM Sachsen-Anhalt Open 2024"]
[Site "Merseburg"]
[Date "2024.02.09"]
[Round "3.3"]
[White "Urban, Tom"]
[Black "Geldner, Gerrit"]
[Result "0-1"]
[ECO "B23"]
[WhiteElo "1696"]
[BlackElo "1889"]
[Annotator "NA RC"]
[PlyCount "40"]
[EventDate "2024.02.01"]
[EventType "swiss"]
[EventCountry "GER"]
[SourceTitle "playchess.com"]
[Source "ChessBase"]
[SourceQuality "1"]
[TimeControl "40/5400+30:1800+30"]

1. e4 {[%emt 0:00:03]} c5 {[%emt 0:00:23]} 2. Nc3 {[%emt 0:00:05]} Nc6 {[%emt 0:00:27]} 3. f4 {[%emt 0:00:06]} d6 {[%emt 0:01:00]} 4. Nf3 {[%emt 0:00:05]} g6 {[%emt 0:00:48]} 5. Bc4 {[%emt 0:00:20]} Bg7 {[%emt 0:01:04]} 6. d3 {[%emt 0:00:20]} e6 {[%emt 0:01:13]} 7. O-O {[%emt 0:01:17]} Nge7 {[%emt 0:01:31]} 8. Qe1 {[%emt 0:01:25]} O-O {[%emt 0:02:06]} 9. Qh4 {[%emt 0:01:31]} d5 {[%emt 0:05:17]} 10. Bb3 {[%emt 0:00:39]} Nd4 {[%emt 0:03:22]} 11. Be3 $2 {[%emt 0:24:41]} (11. Nxd4 $11 cxd4 12. Ne2) 11... Nxb3 {[%emt 0:05:08]} 12. axb3 {[%emt 0:05:27]} d4 {[%emt 0:00:33]} 13. f5 {[%emt 0:00:21]} gxf5 {[%emt 0:08:48]} 14. Bh6 {[%emt 0:02:40]} dxc3 {[%emt 0:04:39]} 15. Bxg7 {[%emt 0:03:30]} Kxg7 {[%emt 0:02:07]} 16. Qg3+ {[%emt 0:04:31]} Ng6 {[%emt 0:04:31]} 17. exf5 {[%emt 0:03:19]} exf5 {[%emt 0:00:36]} 18. h4 $19 {[%emt 0:00:26]} (18. bxc3 $142 f4 19. Qg5) 18... cxb2 {[%emt 0:03:23]} 19. Rab1 {[%emt 0:02:25]} f4 {[%emt 0:02:00]} 20. Qe1 {[%emt 0:00:21]} Qd5 {[%emt 0:04:21]} 0-1

[Event "LEM Sachsen-Anhalt Open 2024"]
[Site "Merseburg"]
[Date "2024.02.09"]
[Round "3.5"]
[White "Martemyanov, Mikhail"]
[Black "Korte, Markus"]
[Result "1/2-1/2"]
[ECO "C29"]
[WhiteElo "1257"]
[BlackElo "1879"]
[Annotator "NA RC"]
[PlyCount "48"]
[EventDate "2024.02.01"]
[EventType "swiss"]
[EventCountry "GER"]
[SourceTitle "playchess.com"]
[Source "ChessBase"]
[SourceQuality "1"]
[TimeControl "40/5400+30:1800+30"]

{[%evp 8,28,-29,-42,32767,-29,32767,32767,-10,-25,-9,-10,41,46,61,61,60,30,57,53,73,60,82]} 1. e4 {[%emt 0:00:04]} e5 {[%emt 0:00:24]} 2. Nc3 {[%emt 0:00:05]} Nf6 {[%emt 0:00:07]} 3. f4 {[%emt 0:00:36]} d5 {[%emt 0:00:36]} 4. fxe5 {[%emt 0:00:39]} Nxe4 {[%emt 0:00:19]} 5. Nf3 {[%emt 0:00:44]} Bc5 {[%emt 0:07:36]} 6. d4 {[%emt 0:00:43]} Bb4 {[%emt 0:00:07]} 7. Bd2 {[%emt 0:00:07]} Bxc3 {[%emt 0:01:44]} 8. Bxc3 {[%emt 0:05:06]} Nxc3 {[%emt 0:05:03]} 9. bxc3 {[%emt 0:00:10]} Bf5 {[%emt 0:00:11]} (9... O-O $11) 10. Bd3 {[%emt 0:03:17]} Bxd3 {[%emt 0:00:40]} 11. Qxd3 {[%emt 0:00:40]} O-O {[%emt 0:00:08]} 12. c4 {[%emt 0:05:34]} Nc6 {[%emt 0:01:37]} 13. O-O {[%emt 0:02:19]} h6 {[%emt 0:03:52]} 14. cxd5 $14 {[%emt 0:03:43]} Nb4 {[%emt 0:01:20]} 15. Qb3 {[%emt 0:05:21]} Nxd5 {[%emt 0:07:31]} 16. c4 {[%emt 0:03:06]} Nf4 {[%emt 0:04:19]} 17. Rad1 {[%emt 0:03:43]} b6 {[%emt 0:12:28]} 18. Qe3 {[%emt 0:27:32]} Ne6 {[%emt 0:03:58]} 19. d5 {[%emt 0:02:09]} Nc5 {[%emt 0:00:53]} 20. Nd4 {[%emt 0:00:05]} Qh4 {[%emt 0:04:12]} 21. Nf5 {[%emt 0:04:18]} Qg5 {[%emt 0:02:42]} 22. Qxg5 {[%emt 0:08:07]} hxg5 {[%emt 0:00:11]} 23. Ne7+ {[%emt 0:08:51]} Kh7 {[%emt 0:00:33]} 24. Rf3 {[%emt 0:00:25]} g6 {[%emt 0:00:37]} 1/2-1/2

[Event "LEM Sachsen-Anhalt Open 2024"]
[Site "Merseburg"]
[Date "2024.02.09"]
[Round "3.7"]
[White "Patzschke, Carlo"]
[Black "Kroh, Christian"]
[Result "1/2-1/2"]
[ECO "E09"]
[WhiteElo "1636"]
[BlackElo "1680"]
[Annotator "NA RC"]
[PlyCount "57"]
[EventDate "2024.02.01"]
[EventType "swiss"]
[EventCountry "GER"]
[SourceTitle "playchess.com"]
[Source "ChessBase"]
[SourceQuality "1"]
[TimeControl "40/5400+30:1800+30"]

1. c4 {[%emt 0:00:02]} e6 {[%emt 0:01:16]} 2. g3 {[%emt 0:00:08]} d5 {[%emt 0:00:28]} 3. Bg2 {[%emt 0:00:09]} Nf6 {[%emt 0:00:16]} 4. Nf3 {[%emt 0:00:36]} Be7 {[%emt 0:00:28]} 5. O-O {[%emt 0:00:18]} O-O {[%emt 0:00:24]} 6. d4 {[%emt 0:00:32]} c6 {[%emt 0:00:29]} 7. Nbd2 {[%emt 0:00:57]} Nbd7 {[%emt 0:01:41]} 8. Qc2 {[%emt 0:01:24]} Re8 {[%emt 0:02:41]} 9. b3 {[%emt 0:02:45]} b6 {[%emt 0:04:25]} 10. e4 {[%emt 0:03:52]} dxe4 {[%emt 0:01:12]} 11. Nxe4 {[%emt 0:08:11]} Bb7 {[%emt 0:01:48]} 12. Nxf6+ {[%emt 0:09:15]} Bxf6 {[%emt 0:02:54]} 13. Bb2 {[%emt 0:01:19]} Qc7 {[%emt 0:01:40]} 14. Rfe1 {[%emt 0:04:23]} Rad8 {[%emt 0:25:07]} 15. b4 {[%emt 0:19:19]} c5 {[%emt 0:09:59]} 16. dxc5 {[%emt 0:04:32]} Bxb2 {[%emt 0:03:13]} 17. Qxb2 {[%emt 0:00:07]} bxc5 {[%emt 0:00:50]} 18. b5 {[%emt 0:04:27]} Nb6 {[%emt 0:00:40]} 19. Qb3 {[%emt 0:07:26]} Rd6 {[%emt 0:06:26]} 20. Re3 {[%emt 0:06:01]} Red8 {[%emt 0:04:15]} 21. Ne5 {[%emt 0:01:33]} Bxg2 {[%emt 0:03:26]} 22. Kxg2 {[%emt 0:00:07]} Rd2 {[%emt 0:04:46]} 23. Nc6 {[%emt 0:04:00]} R8d7 {[%emt 0:03:39]} 24. Rc1 {[%emt 0:03:03]} Nc8 {[%emt 0:03:19]} 25. Re5 {[%emt 0:04:47]} Qb6 {[%emt 0:10:25]} 26. Qa3 {[%emt 0:03:20]} Nd6 {[%emt 0:03:08]} 27. Qb3 {[%emt 0:06:00]} Nb7 {[%emt 0:01:39]} 28. Qa4 {[%emt 0:00:51]} Nd8 {[%emt 0:01:43]} 29. Nxd8 {[%emt 0:02:30]} 1/2-1/2

[Event "LEM Sachsen-Anhalt Open 2024"]
[Site "Merseburg"]
[Date "2024.02.09"]
[Round "3.8"]
[White "Moser, Axel"]
[Black "Donath, Simon"]
[Result "1-0"]
[ECO "A16"]
[WhiteElo "2094"]
[BlackElo "1589"]
[Annotator "NA RC"]
[PlyCount "75"]
[EventDate "2024.02.01"]
[EventType "swiss"]
[EventCountry "GER"]
[SourceTitle "playchess.com"]
[Source "ChessBase"]
[SourceQuality "1"]
[TimeControl "40/5400+30:1800+30"]

1. d4 {[%emt 0:00:03]} Nf6 {[%emt 0:00:05]} 2. Nf3 {[%emt 0:00:11]} g6 {[%emt 0:00:08]} 3. c4 {[%emt 0:00:45]} Bg7 {[%emt 0:00:10]} 4. Nc3 {[%emt 0:00:06]} d6 {[%emt 0:00:07]} 5. g3 {[%emt 0:00:40]} O-O {[%emt 0:00:08]} 6. Bg2 {[%emt 0:00:02]} Bd7 {[%emt 0:01:35]} 7. O-O {[%emt 0:01:56]} c5 {[%emt 0:00:29]} 8. d5 {[%emt 0:05:53]} a6 {[%emt 0:02:01]} 9. a4 {[%emt 0:00:21]} Qb6 {[%emt 0:01:41]} 10. Ra3 {[%emt 0:02:20]} e6 {[%emt 0:02:09]} 11. Qc2 {[%emt 0:10:33]} (11. Bf4 $142) 11... Re8 {[%emt 0:02:39]} 12. Nd2 {[%emt 0:00:59]} exd5 {[%emt 0:03:33]} (12... Qc7 $14) 13. cxd5 {[%emt 0:00:10]} a5 {[%emt 0:03:10]} (13... Qc7 $16 14. Nc4 Bf5) 14. Nc4 {[%emt 0:06:30]} Qc7 $18 {[%emt 0:00:37]} 15. Bf4 {[%emt 0:02:48]} Bf8 {[%emt 0:01:48]} 16. e4 {[%emt 0:04:15]} Na6 {[%emt 0:05:13]} 17. Re1 {[%emt 0:00:39]} Nb4 {[%emt 0:01:58]} 18. Qd2 {[%emt 0:02:58]} Nh5 {[%emt 0:02:08]} 19. Bg5 {[%emt 0:05:29]} f6 {[%emt 0:02:54]} 20. Be3 {[%emt 0:01:11]} Rab8 {[%emt 0:03:52]} 21. h3 {[%emt 0:04:31]} b6 {[%emt 0:09:40]} 22. g4 {[%emt 0:00:17]} Ng7 {[%emt 0:00:08]} 23. Bf4 {[%emt 0:01:19]} f5 {[%emt 0:04:46]} 24. e5 {[%emt 0:02:33]} fxg4 {[%emt 0:00:33]} 25. e6 {[%emt 0:01:23]} Bxa4 {[%emt 0:04:32]} 26. Ne4 {[%emt 0:07:09]} Red8 {[%emt 0:04:00]} 27. Ncxd6 {[%emt 0:03:36]} Nh5 {[%emt 0:01:24]} 28. Be5 {[%emt 0:02:18]} gxh3 {[%emt 0:01:52]} 29. Bxh3 {[%emt 0:01:01]} Bxd6 {[%emt 0:01:12]} 30. Nxd6 {[%emt 0:00:36]} Nc2 {[%emt 0:01:27]} 31. Nf7 {[%emt 0:01:41]} Qb7 {[%emt 0:00:22]} 32. Nh6+ {[%emt 0:00:14]} Kf8 {[%emt 0:00:22]} 33. Bxb8 {[%emt 0:13:28]} Nxe1 {[%emt 0:00:40]} 34. Qxe1 {[%emt 0:02:23]} Rxd5 {[%emt 0:00:57]} 35. Bg2 {[%emt 0:03:12]} Rg5 {[%emt 0:00:37]} 36. Bg3 {[%emt 0:00:09]} Bc6 {[%emt 0:02:03]} 37. e7+ {[%emt 0:06:09]} Ke8 {[%emt 0:00:17]} 38. Nf7 {[%emt 0:03:06]} 1-0